fUST/lending_fUST_20250820
["ID","MTS","AMOUNT","RATE_DAILY","PERIOD"]
[380297503,1755643844319,-480.0,0.00019788,2]
[380297504,1755643844328,-480.0,0.00019788,2]
[380297505,1755643844337,-480.0,0.00019788,2]
[380297506,1755643844346,-480.0,0.00019788,2]
[380297507,1755643844355,-480.0,0.00019788,2]
[380297508,1755643844364,-480.0,0.00019788,2]
[380297509,1755643844373,-480.0,0.00019788,2]
[380297510,1755643844382,-480.0,0.00019788,2]
[380297511,1755643844391,-480.0,0.00019788,2]
[380297512,1755643844400,-480.0,0.00019788,2]
[380297513,1755643844409,-480.0,0.00019788,2]
[380297514,1755643844419,-480.0,0.00019788,2]
[380297515,1755643844435,-198.95415516,0.00019788,2]
[380297516,1755643844444,-480.0,0.00019788,2]
[380297517,1755643844454,-435.38204011,0.00019788,2]
[380297518,1755643844464,-480.0,0.00019788,2]
[380297519,1755643844473,-480.0,0.00019788,2]
[380297520,1755643844483,-480.0,0.00019788,2]
[380297521,1755643844493,-627.3,0.00019788,2]
[380297522,1755643844503,-480.0,0.00019789,2]
[380297523,1755643844513,-480.0,0.00019789,2]
[380297524,1755643844522,-480.0,0.00019789,2]
[380297525,1755643844531,-480.0,0.00019789,2]
[380297526,1755643844541,-840.0,0.00019795,2]
[380297527,1755643844550,-198.0,0.00019795,2]
[380297528,1755643844559,-151.0,0.00019795,2]
[380297529,1755643844568,-151.0,0.00019795,2]
[380297530,1755643844578,-151.08601362,0.00019795,2]
[380297531,1755643844588,-198.0,0.00019795,2]
[380297532,1755643844597,-151.0,0.00019795,2]
[380297533,1755643844606,-297.0,0.00019795,2]
[380297534,1755643844616,-151.0,0.00019795,2]
[380297535,1755643844625,-210.849393,0.00019863,2]
[380297536,1755643844634,-480.0,0.00019898,2]
[380297537,1755643844643,-480.0,0.00019898,2]
[380297538,1755643844652,-151.0,0.00019898,2]
[380297539,1755643844661,-480.59084869,0.00019898,2]
[380297540,1755643844670,-480.0,0.00019898,2]
[380297541,1755643844679,-480.0,0.00019898,2]
[380297542,1755643844689,-480.0,0.00019898,2]
[380297543,1755643844698,-480.0,0.00019898,2]
[380297544,1755643844708,-480.0,0.00019898,2]
[380297545,1755643844717,-480.0,0.00019898,2]
[380297546,1755643844727,-1000.0,0.00019898,2]
[380297547,1755643844736,-1000.0,0.00019898,2]
[380297548,1755643844745,-1000.0,0.00019898,2]
[380297549,1755643844754,-1000.0,0.00019898,2]
[380297550,1755643844763,-1000.0,0.00019898,2]
[380297551,1755643844772,-1000.0,0.00019898,2]
[380297552,1755643844781,-1000.0,0.00019898,2]
[380297553,1755643844790,-1000.0,0.00019898,2]
[380297554,1755643844799,-1000.0,0.00019898,2]
[380297555,1755643844808,-1000.0,0.00019898,2]
[380297556,1755643844818,-1000.0,0.00019898,2]
[380297557,1755643844827,-1000.0,0.00019898,2]
[380297558,1755643844836,-1000.0,0.00019898,2]
[380297559,1755643844845,-1000.0,0.00019898,2]
[380297560,1755643844855,-1000.0,0.00019898,2]
[380297561,1755643844864,-1000.0,0.00019898,2]
[380297562,1755643844873,-1000.0,0.00019898,2]
[380297563,1755643844882,-1000.0,0.00019898,2]
[380297564,1755643844891,-1000.0,0.00019898,2]
[380297565,1755643844900,-1000.0,0.00019898,2]
[380297566,1755643844910,-1000.0,0.00019898,2]
[380297567,1755643844919,-1000.0,0.00019898,2]
[380297568,1755643844929,-1000.0,0.00019898,2]
[380297569,1755643844938,-480.0,0.00019898,2]
[380297570,1755643844947,-748.32957709,0.00019898,2]
[380297571,1755643844956,-480.0,0.00019898,2]
[380297572,1755643844965,-480.0,0.00019898,2]
[380297573,1755643844975,-170.68906213,0.00019898,2]
[380297574,1755643844984,-462.72798284,0.00019898,2]
[380297575,1755643844993,-480.0,0.00019898,2]
[380297576,1755643845003,-151.0,0.000199,2]
[380297577,1755643845013,-480.0,0.0002,2]
[380297579,1755643845022,-160.0,0.0002,3]
[380297580,1755643845031,-500.0,0.0002,2]
[380297581,1755643845041,-480.0,0.0002,2]
[380297582,1755643845050,-480.0,0.00020001,2]
[380297583,1755643845060,-480.0,0.00020001,2]
[380297584,1755643845069,-480.0,0.00020001,2]
[380297585,1755643845078,-480.0,0.00020001,2]
[380297586,1755643845088,-480.0,0.00020002,2]
[380297587,1755643845097,-497.6,0.00020002,2]
[380297588,1755643845107,-480.0,0.00020002,2]
[380297589,1755643845116,-170.67120866,0.00020021,2]
[380297590,1755643845125,-1000.0,0.00020021,2]
[380297591,1755643845134,-1000.0,0.00020021,2]
[380297592,1755643845143,-480.0,0.00020062,2]
[380297593,1755643845153,-480.0,0.00020062,2]
[380297594,1755643845163,-480.0,0.00020062,2]
[380297595,1755643845172,-523.97468872,0.00020062,2]
[380297596,1755643845182,-480.0,0.00020062,2]
[380297597,1755643845192,-480.0,0.00020062,2]
[380297598,1755643845201,-480.0,0.00020062,2]
[380297599,1755643845212,-440.0,0.00020062,2]
[380297600,1755643845221,-480.0,0.00020062,2]
[380297601,1755643845231,-480.0,0.00020062,2]
[380297602,1755643845240,-480.0,0.00020062,2]
[380297603,1755643845249,-480.0,0.00020062,2]
[380297604,1755643845259,-480.0,0.00020062,2]
[380297605,1755643845268,-627.3,0.00020062,2]
[380297606,1755643845277,-480.0,0.00020063,2]
[380297607,1755643845287,-840.0,0.00020069,2]
[380297608,1755643845296,-151.0,0.00020069,2]
[380297609,1755643845306,-151.0,0.00020069,2]
[380297610,1755643845315,-151.0,0.00020069,2]
[380297611,1755643845324,-268.182876,0.00020187,2]
[380297612,1755643845334,-480.0,0.00020274,2]
[380297613,1755643845344,-480.0,0.00020274,2]
[380297614,1755643845353,-480.0,0.00020275,2]
[380297615,1755643845363,-480.0,0.00020275,2]
[380297616,1755643845372,-480.0,0.00020275,2]
[380297617,1755643845483,-597.6,0.00020276,2]
[380297618,1755643845493,-497.6,0.00020276,2]
[380297619,1755643845504,-480.0,0.00020276,2]
[380297620,1755643845514,-480.0,0.00020336,2]
[380297621,1755643845524,-480.0,0.00020336,2]
[380297622,1755643845533,-627.3,0.00020336,2]
[380297623,1755643845543,-480.0,0.00020337,2]
[380297624,1755643845552,-840.0,0.00020343,2]
[380297625,1755643845561,-151.0,0.00020343,2]
[380297626,1755643845570,-198.0,0.00020343,2]
[380297627,1755643845580,-160.0,0.00020433,2]
[380297628,1755643845590,-1607.46689795,0.00020438,2]
[380297629,1755643845599,-151.0,0.000205,3]
[380297630,1755643845608,-480.0,0.00020548,2]
[380297631,1755643845617,-480.0,0.00020548,2]
[380297632,1755643845627,-480.0,0.00020549,2]
[380297633,1755643845636,-480.0,0.00020549,2]
[380297634,1755643845645,-480.0,0.00020549,2]
[380297635,1755643845654,-497.6,0.0002055,2]
[380297636,1755643845664,-480.0,0.0002055,2]
[380297637,1755643845673,-560.30109212,0.00020568,2]
[380297638,1755643845683,-1500.0,0.00020568,2]
[380297639,1755643845692,-480.0,0.0002061,2]
[380297640,1755643845701,-627.3,0.0002061,2]
[380297641,1755643845713,-840.0,0.00020617,2]
[380297642,1755643845723,-2745.15320709,0.00020705,2]
[380297643,1755643845733,-480.0,0.00020822,2]
[380297644,1755643845742,-480.0,0.00020822,2]
[380297645,1755643845752,-480.0,0.00020823,2]
[380297646,1755643845761,-480.0,0.00020823,2]
[380297647,1755643845771,-457.84082815,0.00020823,2]
[380297648,1755643845781,-497.6,0.00020824,2]
[380297649,1755643845790,-506.87475374,0.00020824,2]
[380297650,1755643845800,-480.0,0.00020884,2]
[380297651,1755643845809,-627.3,0.00020884,2]
[380297652,1755643845820,-840.0,0.00020891,2]
[380297653,1755643845829,-528.6845513,0.00020923,2]
[380297654,1755643845838,-417.15472785,0.00020923,2]
[380297655,1755643845848,-232.21311493,0.00020925,2]
[380297656,1755643845857,-375.88899365,0.00020925,2]
[380297657,1755643845867,-160.0,0.00020925,2]
[380297658,1755643845876,-215.79176414,0.00020925,2]
[380297659,1755643845886,-160.0,0.00020925,2]
[380297660,1755643845895,-216.8835046,0.00020925,2]
[380297661,1755643845904,-843.93972674,0.00020925,2]
[380297662,1755643845913,-160.0,0.00020926,2]
[380297663,1755643845923,-160.0,0.00020926,2]
[380297664,1755643845933,-160.0,0.00020926,2]
[380297665,1755643845942,-160.0,0.00020926,2]
[380297666,1755643845952,-164.47246683,0.00020957,2]
[380297667,1755643845964,-260.0,0.00020981,2]
[380297668,1755643845974,-151.0,0.00021,3]
[380297669,1755643845985,-480.0,0.00021096,2]
[380297670,1755643845994,-480.0,0.00021096,2]
[380297671,1755643846004,-480.0,0.00021097,2]
[380297672,1755643846013,-480.0,0.00021097,2]
[380297673,1755643846023,-497.6,0.00021098,2]
[380297674,1755643846033,-480.0,0.00021107,2]
[380297675,1755643846042,-1767.29054172,0.00021116,2]
[380297676,1755643846051,-480.0,0.00021158,2]
[380297677,1755643846060,-627.3,0.00021158,2]
[380297678,1755643846076,-840.0,0.00021165,2]
[380297679,1755643846095,-420.0,0.00021191,2]
[380297680,1755643846105,-28485.4966148,0.00021204,2]
[380297681,1755643846115,-316.43901871,0.0002137,2]
[380297682,1755643846124,-503.96,0.0002137,2]
[380297683,1755643846134,-158.9,0.00021371,2]
[380297684,1755643846143,-480.0,0.00021371,2]
[380297685,1755643846153,-497.6,0.00021372,2]
[380297686,1755643846162,-480.0,0.00021432,2]
[380297687,1755643846172,-627.3,0.00021432,2]
[380297688,1755643846182,-840.0,0.00021439,2]
[380297689,1755643846191,-1607.46689795,0.00021525,2]
[380297690,1755643846201,-360.0,0.00021529,2]
[380297691,1755643846214,-151.0,0.000216,3]
[380297692,1755643846225,-1500.0,0.00021633,2]
[380297693,1755643846235,-480.0,0.00021645,2]
[380297694,1755643846246,-497.6,0.00021646,2]
[380297695,1755643846255,-480.0,0.00021706,2]
[380297696,1755643846265,-627.3,0.00021706,2]
[380297697,1755643846275,-840.0,0.00021713,2]
[380297698,1755643846284,-1329.8162707,0.00021918,7]
[380297699,1755643846294,-521.88735864,0.00021919,2]
[380297700,1755643846303,-497.6,0.0002192,2]
[380297701,1755643846313,-480.0,0.0002198,2]
[380297702,1755643846322,-627.3,0.0002198,2]
[380297703,1755643846332,-840.0,0.00021987,2]
[380297704,1755643846341,-2214.04,0.00022,7]
[380297705,1755643846351,-16562.2,0.00022,7]
[380297706,1755643846360,-35619.9,0.00022,2]
[380297707,1755643846370,-6086.44,0.00022,7]
[380297708,1755643846379,-160.0,0.00022,7]
[380297709,1755643846389,-375.88899365,0.00022,7]
[380297710,1755643846399,-417.15472785,0.00022,7]
[380297711,1755643846409,-179.0,0.00022,2]
[380297712,1755643846418,-528.6845513,0.00022,7]
[380297713,1755643846434,-2745.15320709,0.00022037,2]
[380297714,1755643846444,-460.0,0.00022077,2]
[380297716,1755643846453,-151.0,0.000221,6]
[380297717,1755643846466,-497.6,0.00022194,2]
[380297718,1755643846477,-480.0,0.00022254,2]
[380297719,1755643846487,-627.3,0.00022254,2]
[380297720,1755643846497,-840.0,0.00022261,2]
[380297721,1755643846507,-497.6,0.00022468,2]
[380297722,1755643846517,-480.0,0.00022528,2]
[380297723,1755643846526,-627.3,0.00022528,2]
[380297724,1755643846536,-840.0,0.00022535,2]
[380297725,1755643846545,-1000.0,0.000226,2]
[380297726,1755643846554,-1000.0,0.000226,2]
[380297727,1755643846564,-1000.0,0.000226,2]
[380297728,1755643846574,-1000.0,0.000226,2]
[380297729,1755643846583,-1607.46689795,0.00022611,2]
[380297730,1755643846592,-560.0,0.00022625,2]
[380297731,1755643846601,-151.0,0.000227,7]
[380297732,1755643846611,-1000.0,0.000227,2]
[380297733,1755643846620,-1000.0,0.000227,2]
[380297735,1755643846629,-1500.0,0.00022729,2]
[380297736,1755643846638,-181.301359,0.00022733,2]
[380297737,1755643846647,-497.6,0.00022742,2]
[380297738,1755643846657,-480.0,0.00022802,2]
[380297739,1755643846666,-627.3,0.00022802,2]
[380297740,1755643846676,-840.0,0.00022809,2]
[380297741,1755643846686,-500.0,0.00022825,2]
[380297742,1755643846695,-500.0,0.0002288,2]
[380297743,1755643846704,-500.0,0.0002288,2]
[380297744,1755643846715,-1000.0,0.00022984,2]
[380297745,1755643846725,-199.00176164,0.00022984,2]
[380297746,1755643846735,-17842.522448,0.00022984,2]
[380297747,1755643846744,-151.0,0.00022984,2]
[380297748,1755643846754,-151.0,0.00022984,2]
[380297749,1755643846763,-151.0,0.00022984,2]
[380297750,1755643846773,-151.0,0.00022984,2]
[380297751,1755643846781,-151.0,0.00022984,2]
[380297752,1755643846791,-151.0,0.00022984,2]
[380297753,1755643846800,-2264.10087163,0.00022984,2]
[380297754,1755643846810,-151.0,0.00022984,2]
[380297755,1755643846819,-265.61602389,0.00022984,2]
[380297757,1755643846828,-151.0,0.00022984,2]
[380297758,1755643846837,-151.0,0.00022984,2]
[380297759,1755643846846,-151.0,0.00022984,2]
[380297760,1755643846855,-151.0,0.00022984,2]
[380297761,1755643846864,-226.22943837,0.00022984,2]
[380297762,1755643846874,-160.0,0.00023,2]
[380297763,1755643846883,-179.0,0.00023014,7]
[380297764,1755643846893,-497.6,0.00023016,2]
[380297765,1755643846902,-480.0,0.00023076,2]
[380297766,1755643846912,-627.3,0.00023076,2]
[380297767,1755643846924,-840.0,0.00023083,2]
[380297768,1755643846936,-587.0,0.00023087,2]
[380297769,1755643846946,-660.0,0.00023173,2]
[380297770,1755643846957,-151.0,0.000232,10]
[380297771,1755643846967,-210.849393,0.00023288,2]
[380297772,1755643846976,-497.6,0.0002329,2]
[380297773,1755643846986,-6086.44,0.000233,7]
[380297774,1755643846995,-151.0,0.000233,10]
[380297775,1755643847005,-480.0,0.0002335,2]
[380297776,1755643847017,-627.3,0.0002335,2]
[380297777,1755643847027,-840.0,0.00023357,2]
[380297778,1755643847036,-2745.15320709,0.00023368,2]
[380297779,1755643847046,-154.246045,0.00023418,2]
[380297780,1755643847055,-500.0,0.0002342,2]
[380297781,1755643847064,-766.90847773,0.00023428,2]
[380297782,1755643847074,-250.0,0.00023435,2]
[380297783,1755643847084,-179.0,0.00023473,2]
[380297784,1755643847094,-168.0,0.00023491,2]
[380297785,1755643847103,-12500.0,0.00023491,7]
[380297786,1755643847113,-497.6,0.00023564,2]
[380297787,1755643847122,-168.0,0.0002361,2]
[380297788,1755643847132,-480.0,0.00023624,2]
[380297789,1755643847141,-627.3,0.00023624,2]
[380297790,1755643847151,-840.0,0.00023631,2]
[380297791,1755643847160,-1607.46689795,0.00023698,2]
[380297792,1755643847170,-160.92920943,0.00023705,2]
[380297793,1755643847179,-760.0,0.00023721,2]
[380297794,1755643847189,-1609.29209431,0.00023756,2]
[380297795,1755643847198,-160.92920943,0.00023767,2]
[380297796,1755643847208,-1609.29209431,0.00023795,2]
[380297797,1755643847217,-151.0,0.000238,7]
[380297798,1755643847226,-151.0,0.000238,8]
[380297799,1755643847236,-1500.0,0.00023825,2]
[380297800,1755643847245,-497.6,0.00023838,2]
[380297801,1755643847254,-480.0,0.00023898,2]
[380297802,1755643847264,-627.3,0.00023898,2]
[380297803,1755643847274,-1670.47717234,0.000239,2]
[380297804,1755643847283,-840.0,0.00023905,2]
[380297805,1755643847293,-1000.0,0.00023968,2]
[380297806,1755643847302,-843.93972674,0.00024,7]
[380297807,1755643847311,-160.0,0.00024,7]
[380297808,1755643847320,-232.21311493,0.00024,7]
[380297809,1755643847329,-216.8835046,0.00024,7]
[380297810,1755643847339,-305.0,0.00024099,2]
[380297811,1755643847348,-497.6,0.00024112,2]
[380297812,1755643847357,-659.7930276,0.00024152,2]
[380297813,1755643847366,-480.0,0.00024172,2]
[380297814,1755643847376,-627.3,0.00024172,2]
[380297815,1755643847385,-840.0,0.00024179,2]
[380297816,1755643847394,-2214.04,0.000242,7]
[380297817,1755643847403,-16562.2,0.000242,7]
[380297818,1755643847412,-35619.9,0.000242,2]
[380297819,1755643847423,-151.0,0.000242,7]
[380297820,1755643847432,-233.282969,0.000242,7]
[380297821,1755643847441,-151.0,0.000242,7]
[380297822,1755643847450,-208.617058,0.000242,7]
[380297823,1755643847460,-151.0,0.000242,7]
[380297824,1755643847470,-151.0,0.000242,7]
[380297825,1755643847482,-238.885278,0.000242,7]
[380297826,1755643847494,-151.0,0.000242,7]
[380297827,1755643847505,-151.0,0.000242,7]
[380297828,1755643847515,-210.792876,0.000242,7]
[380297829,1755643847524,-170.397068,0.000242,7]
[380297830,1755643847534,-170.397068,0.000242,7]
[380297831,1755643847543,-170.397068,0.000242,7]
[380297832,1755643847553,-170.397068,0.000242,7]
[380297833,1755643847562,-843.93972674,0.000242,7]
[380297834,1755643847571,-160.0,0.000242,7]
[380297835,1755643847581,-151.0,0.000242,7]
[380297836,1755643847591,-160.0,0.000242,7]
[380297837,1755643847601,-151.0,0.000242,7]
[380297838,1755643847610,-153.9889,0.000242,7]
[380297839,1755643847620,-417.15472785,0.000242,7]
[380297840,1755643847629,-151.0,0.000242,7]
[380297841,1755643847639,-151.0,0.000242,7]
[380297842,1755643847648,-151.0,0.000242,7]
[380297843,1755643847657,-151.0,0.000242,7]
[380297844,1755643847667,-151.0,0.000242,7]
[380297845,1755643847676,-151.0,0.000242,7]
[380297846,1755643847684,-152.45789,0.000242,7]
[380297847,1755643847694,-151.0,0.000242,7]
[380297848,1755643847703,-151.0,0.000242,7]
[380297849,1755643847715,-151.0,0.000242,7]
[380297850,1755643847724,-151.0,0.000242,7]
[380297851,1755643847733,-216.8835046,0.000242,7]
[380297852,1755643847742,-151.0,0.000242,7]
[380297853,1755643847752,-151.0,0.000242,7]
[380297854,1755643847761,-151.0,0.000242,7]
[380297855,1755643847770,-151.0,0.000242,7]
[380297856,1755643847779,-262.292764,0.000242,7]
[380297857,1755643847788,-151.0,0.000242,7]
[380297858,1755643847798,-151.0,0.000242,7]
[380297859,1755643847807,-151.0,0.000242,7]
[380297860,1755643847817,-860.0,0.00024269,2]
[380297861,1755643847826,-1089.06,0.00024315,7]
[380297862,1755643847835,-13015.73206453,0.00024353,2]
[380297863,1755643847844,-497.6,0.00024386,2]
[380297864,1755643847853,-168.0,0.00024387,2]
[380297865,1755643847863,-151.0,0.000244,9]
[380297866,1755643847872,-151.0,0.000244,10]
[380297867,1755643847881,-1089.06,0.00024415,7]
[380297868,1755643847891,-480.0,0.00024446,2]
[380297869,1755643847900,-627.3,0.00024446,2]
[380297870,1755643847910,-305.0,0.00024452,2]
[380297871,1755643847919,-840.0,0.00024453,2]
[380297872,1755643847929,-6086.44,0.000245,7]
[380297873,1755643847938,-154.246045,0.000245,3]
[380297874,1755643847947,-1089.06,0.00024515,7]
[380297875,1755643847956,-1094.43579841,0.00024516,2]
[380297876,1755643847965,-419.4806457,0.00024548,2]
[380297877,1755643847975,-381.1875043,0.00024548,2]
[380297878,1755643847984,-160.842982,0.00024548,2]
[380297879,1755643847993,-580.8939941,0.00024548,2]
[380297880,1755643848003,-293.8943201,0.00024548,2]
[380297881,1755643848012,-160.842982,0.00024548,2]
[380297882,1755643848021,-160.842982,0.00024548,2]
[380297883,1755643848031,-293.8943201,0.00024548,2]
[380297884,1755643848130,-160.842982,0.00024548,2]
[380297885,1755643848153,-293.8943201,0.00024548,2]
[380297886,1755643848163,-160.842982,0.00024548,2]
[380297887,1755643848174,-293.8943201,0.00024548,2]
[380297888,1755643848184,-160.842982,0.00024548,2]
[380297889,1755643848195,-589.05297874,0.00024552,4]
[380297890,1755643848205,-972.0,0.00024579,2]
[380297891,1755643848217,-2153.0,0.00024579,2]
[380297892,1755643848226,-637.0,0.00024579,2]
[380297893,1755643848236,-168.0,0.00024593,2]
[380297894,1755643848246,-1089.06,0.00024615,7]
[380297895,1755643848255,-154.246045,0.00024645,2]
[380297896,1755643848264,-500.0,0.00024658,2]
[380297897,1755643848274,-497.6,0.0002466,2]
[380297898,1755643848284,-2745.15320709,0.000247,2]
[380297899,1755643848294,-305.0,0.00024712,2]
[380297900,1755643848305,-1089.06,0.00024715,7]
[380297901,1755643848314,-480.0,0.0002472,2]
[380297902,1755643848324,-627.3,0.0002472,2]
[380297903,1755643848333,-840.0,0.00024727,2]
[380297904,1755643848343,-438.0,0.00024742,7]
[380297905,1755643848352,-506.59474053,0.00024773,2]
[380297906,1755643848362,-150.0,0.00024773,2]
[380297907,1755643848371,-250.0,0.00024773,2]
[380297908,1755643848381,-500.0,0.00024773,2]
[380297909,1755643848390,-438.0,0.00024785,2]
[380297910,1755643848399,-151.0,0.000248,7]
[380297911,1755643848408,-151.0,0.000248,7]
[380297912,1755643848418,-151.0,0.000248,7]
[380297913,1755643848432,-444.3455055,0.000248,2]
[380297914,1755643848441,-1777.38202198,0.000248,2]
[380297915,1755643848451,-3995.11043991,0.000248,2]
[380297916,1755643848460,-284.04408466,0.000248,2]
[380297917,1755643848471,-1136.17633863,0.000248,2]
[380297918,1755643848480,-2556.39676193,0.000248,2]
[380297919,1755643848489,-4544.70535453,0.000248,2]
[380297920,1755643848499,-7094.00101434,0.000248,2]
[380297921,1755643848508,-151.0,0.000248,7]
[380297922,1755643848518,-151.0,0.000248,7]
[380297923,1755643848527,-1000.0,0.000248,2]
[380297924,1755643848537,-151.0,0.000248,7]
[380297925,1755643848546,-2799.90566291,0.000248,2]
[380297926,1755643848555,-170.397068,0.000248,7]
[380297927,1755643848563,-170.397068,0.000248,7]
[380297928,1755643848573,-170.397068,0.000248,7]
[380297929,1755643848582,-170.397068,0.000248,7]
[380297930,1755643848592,-452.96801648,0.000248,2]
[380297931,1755643848601,-7504.8371452,0.000248,2]
[380297932,1755643848610,-151.0,0.000248,7]
[380297933,1755643848619,-151.0,0.000248,7]
[380297934,1755643848628,-251.779122,0.000248,7]
[380297935,1755643848637,-151.0,0.000248,7]
[380297936,1755643848646,-151.0,0.000248,7]
[380297937,1755643848656,-7130.98892477,0.00024814,2]
[380297938,1755643848665,-960.0,0.00024817,2]
[380297939,1755643848675,-500.0,0.00024873,2]
[380297940,1755643848684,-500.0,0.00024873,2]
[380297941,1755643848693,-500.0,0.00024873,2]
[380297942,1755643848702,-500.0,0.00024873,2]
[380297943,1755643848712,-500.0,0.00024873,2]
[380297944,1755643848721,-500.0,0.00024873,2]
[380297945,1755643848730,-500.0,0.00024873,2]
[380297946,1755643848739,-500.0,0.00024873,2]
[380297947,1755643848749,-500.0,0.00024873,2]
[380297948,1755643848758,-500.0,0.00024873,2]
[380297949,1755643848767,-500.16719209,0.00024873,2]
[380297950,1755643848776,-500.0,0.00024873,2]
[380297951,1755643848785,-500.0,0.00024873,2]
[380297952,1755643848794,-158.24676268,0.00024873,2]
[380297953,1755643848803,-500.0,0.00024873,2]
[380297954,1755643848812,-500.0,0.00024873,2]
[380297955,1755643848821,-500.0,0.00024873,2]
[380297956,1755643848830,-213.63565931,0.00024884,2]
[380297957,1755643848839,-152.373275,0.00024885,7]
[380297958,1755643848848,-151.0,0.00024885,7]
[380297959,1755643848857,-151.0,0.00024885,7]
[380297960,1755643848866,-151.0,0.000249,7]
[380297961,1755643848875,-151.0,0.000249,7]
[380297962,1755643848884,-151.0,0.000249,7]
[380297963,1755643848893,-173.883419,0.000249,7]
[380297964,1755643848903,-500.0,0.000249,9]
[380297965,1755643848913,-768386.302635,0.000249,2]
[380297966,1755643848922,-151.0,0.000249,7]
[380297967,1755643848931,-151.0,0.000249,7]
[380297968,1755643848941,-151.0,0.000249,7]
[380297969,1755643848950,-151.0,0.000249,7]
[380297970,1755643848959,-151.0,0.000249,7]
[380297971,1755643848968,-163.33011413,0.000249,2]
[380297972,1755643848977,-645.0,0.000249,2]
[380297973,1755643848986,-325.8729,0.000249,2]
[380297974,1755643848995,-151.0,0.000249,7]
[380297975,1755643849005,-151.0,0.000249,7]
[380297976,1755643849014,-151.0,0.000249,7]
[380297977,1755643849023,-201.797042,0.000249,7]
[380297978,1755643849032,-151.0,0.000249,7]
[380297979,1755643849041,-151.0,0.000249,7]
[380297980,1755643849050,-858.93,0.00024914,7]
[380297981,1755643849070,-1500.0,0.00024921,2]
[380297982,1755643849080,-500.0,0.00024932,2]
[380297983,1755643849090,-497.6,0.00024934,2]
[380297984,1755643849099,-411.18116709,0.00024957,2]
[380297985,1755643849109,-480.0,0.00024994,2]
[380297986,1755643849119,-627.3,0.00024994,2]
[380297987,1755643849128,-158.53485494,0.00025,30]
[380297988,1755643849138,-27901.21162513,0.00025,2]
[380297989,1755643849148,-1990.946546,0.00025,5]
[380297990,1755643849158,-154.246045,0.00025,3]
[380297991,1755643849168,-203.882797,0.00025,2]
[380297992,1755643849178,-840.0,0.00025,2]
[380297993,1755643849188,-305.0,0.00025009,2]
[380297994,1755643849198,-858.93,0.00025014,7]
[380297995,1755643849207,-438.0,0.00025048,2]
[380297996,1755643849217,-7130.98892475,0.00025052,2]
[380297997,1755643849227,-290.0,0.00025089,2]
[380297998,1755643849237,-858.93,0.00025114,7]
[380297999,1755643849247,-823.0,0.00025154,2]
[380298000,1755643849256,-207.0,0.0002518,2]
[380298001,1755643849266,-168.0,0.00025183,2]
[380298002,1755643849276,-151.0,0.000252,20]
[380298003,1755643849286,-500.0,0.00025206,2]
[380298004,1755643849295,-497.6,0.00025208,2]
[380298005,1755643849314,-858.93,0.00025214,7]
[380298006,1755643849329,-154.246045,0.0002525,15]